[Event "III Menorca Open-A 2024"]
[Site "Ciutadella Menorca"]
[Date "2024.04.03"]
[Round "3.17"]
[White "Pranav Anand"]
[Black "Mamedov, Edgar"]
[Result "0-1"]
[ECO "C55"]
[WhiteElo "2519"]
[BlackElo "2317"]
[Annotator "TA"]
[PlyCount "136"]
[EventDate "2024.04.02"]
[EventType "swiss"]
[EventCountry "ESP"]
[SourceTitle "playchess.com"]
[Source "ChessBase"]
[SourceQuality "1"]
[TimeControl "5400+30"]

{[%evp 61,136,-24,-27,-29,-24,-32,-24,-41,-17,-77,0,-27,-10,-59,-10,-42,-10,-127,-27,-52,0,-49,0,-10,0,0,0,-5,41,0,0,-33,0,0,42,41,38,50,48,26,43,31,73,81,60,56,101,99,207,197,242,253,246,216,252,181,179,146,124,130,172,167,178,79,87,87,109,-57,-58,-603,41,-724,-681,-29990,-29991,-29991,-29992]} 1. e4 {[%emt 0:00:14]} e5 {[%emt 0:01:01]} 2. Nf3 {[%emt 0:00:08]} Nc6 {[%emt 0:00:05]} 3. Bc4 {[%emt 0:02:17]} Nf6 {[%emt 0:00:44]} 4. d3 {[%emt 0:00:05]} Be7 {[%emt 0:00:39]} 5. O-O {[%emt 0:00:15]} O-O {[%emt 0:00:30]} 6. a4 {[%emt 0:00:33]} d6 {[%emt 0:00:30]} 7. Re1 {[%emt 0:00:11]} Be6 {[%emt 0:00:30]} 8. a5 {[%emt 0:00:16]} a6 {[%emt 0:00:26]} 9. h3 {[%emt 0:00:45]} Qd7 {[%emt 0:06:09]} 10. Nc3 {[%emt 0:03:23]} Rae8 {[%emt 0:04:09]} 11. Bd2 {[%emt 0:03:55]} Bd8 {[%emt 0:04:00]} 12. Ng5 {[%emt 0:06:22]} Bxc4 {[%emt 0:01:19]} 13. dxc4 {[%emt 0:00:02]} h6 {[%emt 0:04:03]} 14. Nf3 {[%emt 0:00:04]} Qe6 {[%emt 0:03:20]} 15. Nd5 {[%emt 0:03:18]} Nd7 {[%emt 0:01:08]} 16. Be3 {[%emt 0:04:19]} f5 {[%emt 0:31:00]} 17. Qd3 {[%emt 0:14:29]} f4 {[%emt 0:04:19]} 18. Bd2 {[%emt 0:00:37]} Nc5 {[%emt 0:00:42]} 19. Qe2 {[%emt 0:01:40]} Qf7 {[%emt 0:01:12]} 20. Bc3 {[%emt 0:13:36]} Ne6 {[%emt 0:02:33]} 21. Rad1 {[%emt 0:01:23]} g5 {[%emt 0:03:06]} 22. b4 {[%emt 0:00:39]} h5 {[%emt 0:06:11]} 23. Nh2 {[%emt 0:11:59]} Ncd4 {[%emt 0:01:52]} 24. Bxd4 {[%emt 0:00:02]} Nxd4 {[%emt 0:00:54]} 25. Qd3 {[%emt 0:00:01]} c6 {[%emt 0:03:49]} 26. Nb6 {[%emt 0:00:50]} Bc7 {[%emt 0:03:17]} 27. c3 {[%emt 0:01:38]} Ne6 {[%emt 0:00:04]} 28. Rd2 {[%emt 0:01:20]} Re7 {[%emt 0:01:04]} 29. Red1 {[%emt 0:00:53]} Qg6 {[%emt 0:02:27]} 30. f3 {[%emt 0:01:57]} Rd8 {[%emt 0:05:40]} 31. Qe2 {[%emt 0:01:50]} Qe8 {[%emt 0:01:43]} 32. Qf2 {[%emt 0:02:56]} Rg7 {[%emt 0:00:53]} 33. Rd3 {[%emt 0:00:45]} Kh8 {[%emt 0:01:12]} 34. Qe2 {[%emt 0:01:38]} Qf8 {[%emt 0:00:40]} 35. R1d2 {[%emt 0:00:59]} (35. Qa2 $11 {remains equal.}) 35... Qe8 {[%emt 0:00:51]} ({Black should play} 35... Bxb6+ $17 36. axb6 a5) 36. Qd1 {[%emt 0:00:19]} Qe7 {[%emt 0:00:27]} ({Don't play} 36... g4 37. hxg4 h4 38. Na4 $14) 37. Qb3 {[%emt 0:02:37]} (37. Kf1 $11) 37... Kh7 {[%emt 0:01:15]} (37... g4 $1 $15 38. hxg4 hxg4 39. Nxg4 Qh4) 38. Kf1 {[%emt 0:00:51]} Rdg8 {[%emt 0:01:01]} 39. Ke2 {[%emt 0:01:11]} (39. Qd1 $11) 39... Kh8 {[%emt 0:00:05]} (39... Bxb6 40. axb6 Ra8 41. Rxd6 $14) (39... g4 $1 $17 {[%cal Rg4h3]} 40. fxg4 Ng5) 40. Kd1 {[%emt 0:00:36]} Kh7 {[%emt 0:00:34]} (40... Bxb6 $15 41. axb6 Rd8) 41. Kc1 {[%emt 0:00:08]} (41. Ke2 $11) 41... Kh8 {[%emt 0:00:20]} (41... Bxb6 $15 {deserves consideration.} 42. axb6 Rd8) 42. Kb2 {[%emt 0:00:25]} Kh7 {[%emt 0:00:06]} 43. Rd1 {[%emt 0:00:16]} Kh8 {[%emt 0:00:06]} 44. Qc2 {[%emt 0:01:12]} Kh7 {[%emt 0:00:24]} (44... Rh7 $11) 45. Qf2 {[%emt 0:00:14]} (45. Nf1 {feels hotter.} Bxb6 46. axb6 a5 47. Rxd6 axb4 48. cxb4 Nd4 49. R1xd4 exd4 50. c5) 45... Kh8 {[%emt 0:00:44]} 46. Rh1 {[%emt 0:00:51]} Rh7 {[%emt 0:00:20]} 47. Nf1 {[%emt 0:00:21]} Rgg7 {[%emt 0:02:34]} 48. Nd2 {[%emt 0:00:27]} g4 {[%emt 0:01:28]} 49. hxg4 {[%emt 0:01:42]} hxg4 {[%emt 0:00:06]} 50. Rxh7+ {[%emt 0:00:07]} Kxh7 {[%emt 0:03:58]} 51. Nb3 {[%emt 0:00:27]} gxf3 {[%emt 0:00:00]} 52. gxf3 {[%emt 0:00:02]} Kg8 {[%emt 0:00:00]} 53. Ka3 {[%emt 0:00:31]} Qf8 {[%emt 0:00:27]} 54. Na4 {[%emt 0:00:20]} Qe7 {[%emt 0:00:37] [#]} (54... Bd8 $16 {was called for.}) 55. Qa7 $1 $18 {[%emt 0:00:19]} Nd8 {[%emt 0:00:09]} 56. c5 {[%emt 0:00:31]} d5 {[%emt 0:00:16]} 57. exd5 {[%emt 0:00:33]} cxd5 {[%emt 0:00:06]} 58. Rxd5 {[%emt 0:00:49]} e4 {[%emt 0:00:41]} 59. fxe4 {[%emt 0:00:43]} Qxe4 {[%emt 0:00:28]} 60. Rd4 {[%emt 0:01:08]} Qe2 {[%emt 0:01:08] [#]} 61. Rd2 $1 {[%emt 0:05:27]} Qe3 {[%emt 0:00:17]} 62. Nb6 {[%emt 0:01:17]} (62. Qa8 $18 {[%cal Oa4b6] is more deadly. Nb6! would now be deadly.} f3 63. Rxd8+ Bxd8 64. Qxd8+ Kf7 65. Qc7+ Kf8 66. Qd6+ Kf7 67. Qd5+ (67. c6 bxc6 68. Qd7+ Kf8 $14) 67... Kf8 68. Qd8+ Kf7 69. Qd5+ Kf8 70. Qd6+ Kf7 71. Nb2 (71. c6 bxc6 72. Qc7+ Kf8 $14)) 62... Qxc3 $16 {[%emt 0:01:03]} 63. Nd5 {[%emt 0:00:03]} Qe5 {[%emt 0:00:12]} 64. Qa8 $2 {[%emt 0:00:39]} (64. Nxc7 $16 Qxc7 65. Qa8) 64... Rg3 $1 $15 {[%emt 0:00:31]} 65. Nxc7 $2 {[%emt 0:01:13][%mdl 8192]} (65. Rd1 $15 Qe2 66. Rb1) 65... Qa1+ $19 {[%emt 0:00:06]} 66. Ra2 {[%emt 0:00:02]} Qd1 {[%emt 0:00:59]} 67. Rb2 {[%emt 0:01:37]} Rxb3+ $1 {[%emt 0:00:21]} 68. Ka2 {[%emt 0:00:00]} Re3 {[%emt 0:00:41]} 0-1

[Event "III Menorca Open-A 2024"]
[Site "Ciutadella Menorca"]
[Date "2024.04.03"]
[Round "3.18"]
[White "Falkevall, Axel"]
[Black "Lubbe, Nikolas"]
[Result "0-1"]
[ECO "D37"]
[WhiteElo "2284"]
[BlackElo "2518"]
[Annotator "TA"]
[PlyCount "117"]
[EventDate "2024.04.02"]
[EventType "swiss"]
[EventCountry "ESP"]
[SourceTitle "playchess.com"]
[Source "ChessBase"]
[SourceQuality "1"]
[TimeControl "5400+30"]

{[%evp 12,117,14,13,18,22,39,33,32,12,45,41,31,32,22,28,29,21,17,13,27,20,41,37,44,52,37,25,33,41,30,22,38,24,14,0,0,0,5,0,0,0,0,0,0,0,0,0,0,0,0,0,0,-5,-7,-10,12,9,10,8,16,21,30,39,31,36,27,0,0,0,0,0,0,0,0,0,0,0,0,0,0,0,0,0,0,0,0,0,0,0,0,0,0,0,0,0,0,0,0,-10522,-8054,-29953,-29950,-29940,-29942,-10522,-8940,-4622]} 1. d4 {[%emt 0:00:05]} d5 {[%emt 0:00:08]} 2. c4 {[%emt 0:00:05]} e6 {[%emt 0:00:05]} 3. Nc3 {[%emt 0:00:21]} Nf6 {[%emt 0:00:08]} 4. Nf3 {[%emt 0:00:09]} Be7 {[%emt 0:01:15]} 5. Bf4 {[%emt 0:00:17]} O-O {[%emt 0:05:41]} 6. e3 {[%emt 0:01:52]} b6 {[%emt 0:03:38]} 7. Be2 {[%emt 0:01:45]} dxc4 {[%emt 0:03:24]} 8. Bxc4 {[%emt 0:01:49]} Ba6 {[%emt 0:00:34]} 9. Bxa6 {[%emt 0:03:07]} Nxa6 {[%emt 0:00:02] White is slightly better.} 10. Ne5 {[%emt 0:03:15]} Nd5 {[%emt 0:19:21]} 11. Nc6 {[%emt 0:05:44]} Nxc3 {[%emt 0:02:56]} 12. bxc3 {[%emt 0:01:56]} Qd7 {[%emt 0:00:28]} 13. Nxe7+ {[%emt 0:00:57]} Qxe7 {[%emt 0:00:02]} 14. O-O {[%emt 0:03:23]} c5 {[%emt 0:03:32]} 15. Qe2 {[%emt 0:06:43]} Qb7 {[%emt 0:05:51]} 16. Rad1 {[%emt 0:05:37][%cal Ba1d1,Bd1d3,Bd3g3][%mdl 32] Black is weak on the dark squares} Rfc8 {[%emt 0:04:55]} 17. e4 {[%emt 0:04:37]} cxd4 {[%emt 0:11:37]} 18. cxd4 {[%emt 0:00:05]} Rd8 {[%emt 0:01:24]} 19. Rd3 {[%emt 0:04:01]} f6 {[%emt 0:03:57]} 20. Rfd1 {[%emt 0:02:57]} Rac8 {[%emt 0:03:00]} 21. Rg3 {[%emt 0:12:16]} Rd7 {[%emt 0:01:09]} 22. h4 {[%emt 0:03:30]} Rcd8 {[%emt 0:04:52][%cal Oa6c5]} 23. e5 {[%emt 0:08:10][%cal Be4e5,Be5e6][%mdl 32]} f5 {[%emt 0:01:56]} 24. Bg5 {[%emt 0:00:52]} Re8 {[%emt 0:01:06]} 25. d5 {[%emt 0:03:18]} exd5 {[%emt 0:02:03]} 26. e6 {[%emt 0:14:32]} Rd6 {[%emt 0:00:39]} 27. e7 {[%emt 0:02:11]} Nc5 {[%emt 0:06:40]} 28. Qe5 $1 {[%emt 0:00:37][%csl LRd6,LRf5][%cal Og5h6] [#] White threatens Bh6! and mate.} Qd7 $1 {[%emt 0:01:07]} 29. Bf4 {[%emt 0:05:50][%csl LRd6,LRg7]} ({But not} 29. Bf6 g6 30. Qa1 Qa4 $15 (30... Ne4 31. Bh8 $17)) (29. h5 $5 Re6 $8 30. Qf4 $14 (30. Qxf5 $2 {loses.} Re1+ 31. Rxe1 Qxf5 $19) (30. Qxd5 Qxd5 31. Rxd5 Ne4 $11)) 29... Rg6 {[%emt 0:00:13]} 30. Rxd5 {[%emt 0:01:37]} Qxe7 {[%emt 0:00:48]} 31. Qxe7 {[%emt 0:00:50]} Rxe7 {[%emt 0:00:01]} 32. Rxf5 {[%emt 0:00:20]} Re1+ {[%emt 0:05:09]} 33. Kh2 {[%emt 0:00:03]} Re4 {[%emt 0:00:03]} 34. Ra3 {[%emt 0:01:36]} a5 {[%emt 0:01:37]} 35. h5 {[%emt 0:00:41]} Rge6 {[%emt 0:01:28]} 36. Be3 {[%emt 0:01:19]} R4e5 {[%emt 0:02:20]} 37. Rxe5 Rxe5 $11 {[%emt 0:00:00][%mdl 4096] Endgame. KRB-KRN} 38. g4 {[%emt 0:00:33]} Kf7 {[%emt 0:00:33]} 39. Bd4 {[%emt 0:00:58]} Rd5 {[%emt 0:01:00]} 40. Rf3+ {[%emt 0:00:04]} Kg8 {[%emt 0:00:13]} 41. Bxc5 {[%emt 0:00:14]} Rxc5 {[%emt 0:00:08] KR-KR} 42. Kg3 {[%emt 0:00:32]} b5 {[%emt 0:00:36]} 43. Rd3 {[%emt 0:00:31]} b4 {[%emt 0:01:09]} 44. Rd7 {[%emt 0:01:53]} h6 {[%emt 0:01:53]} 45. f4 {[%emt 0:00:48]} Rc3+ {[%emt 0:01:00]} 46. Kh4 {[%emt 0:00:03]} Rc2 {[%emt 0:00:27]} 47. g5 {[%emt 0:00:15] [#] Hoping for g6.} hxg5+ {[%emt 0:01:15]} 48. fxg5 {[%emt 0:00:04] Black must now prevent g6.} Rxa2 {[%emt 0:01:17] ...a4 is the strong threat.} 49. g6 {[%emt 0:00:18][%cal Rd7d8]} Rf2 {[%emt 0:00:43] And now ...b3 would win.} 50. Ra7 {[%emt 0:00:26]} Rf8 {[%emt 0:00:49]} 51. Rxa5 {[%emt 0:00:30]} Rb8 {[%emt 0:00:01] Inhibits Rb5.} 52. Ra2 {[%emt 0:00:14]} Kf8 {[%emt 0:00:08]} 53. Rb2 $1 {[%emt 0:00:38]} Ke7 {[%emt 0:00:36]} 54. Kg4 {[%emt 0:00:16]} b3 {[%emt 0:00:47]} 55. Kf4 $2 {[%emt 0:00:38][%mdl 8192]} (55. Kf5 $11) 55... Kf6 $19 {[%emt 0:00:27]} 56. Ke4 {[%emt 0:02:22]} Kg5 {[%emt 0:00:19]} 57. Kd4 {[%emt 0:00:41]} Kxh5 {[%emt 0:00:14]} 58. Kc3 {[%emt 0:00:09]} Kxg6 {[%emt 0:00:15] ...Kg5 would now be deadly.} 59. Kd4 {[%emt 0:01:26] Weighted Error Value: White=0.29 (precise) /Black=0.03 (flawless) .  Loses game:     	White=1     	---        Inaccurate:     	White=2     	Black=1      OK:         	White=21    	Black=20     Best:        	White=3     	Black=4      Strong:       	White=2     	Black=1} 0-1

[Event "III Menorca Open-A 2024"]
[Site "Ciutadella Menorca"]
[Date "2024.04.03"]
[Round "3.19"]
[White "Iermito, Sebastian"]
[Black "Zhu, Hengyi"]
[Result "1-0"]
[ECO "A07"]
[WhiteElo "2511"]
[BlackElo "2282"]
[Annotator "RC"]
[PlyCount "95"]
[EventDate "2024.04.02"]
[EventType "swiss"]
[EventCountry "ESP"]
[SourceTitle "playchess.com"]
[Source "ChessBase"]
[SourceQuality "1"]
[TimeControl "5400+30"]

1. Nf3 {[%emt 0:00:03]} Nf6 {[%emt 0:00:14]} 2. g3 {[%emt 0:00:24]} d5 {[%emt 0:00:28]} 3. Bg2 {[%emt 0:00:06]} e6 {[%emt 0:00:06]} 4. O-O {[%emt 0:00:16]} Be7 {[%emt 0:00:06]} 5. d3 {[%emt 0:00:10]} O-O {[%emt 0:00:13]} 6. Bf4 {[%emt 0:00:21]} Nc6 {[%emt 0:00:21]} 7. d4 {[%emt 0:06:28]} Bd6 {[%emt 0:01:29]} 8. e3 {[%emt 0:01:25]} Re8 {[%emt 0:06:50]} 9. Nbd2 {[%emt 0:11:17]} e5 {[%emt 0:02:10]} 10. dxe5 {[%emt 0:00:09]} Nxe5 {[%emt 0:00:07]} 11. Bxe5 {[%emt 0:00:22]} Bxe5 {[%emt 0:00:08]} 12. Nxe5 {[%emt 0:00:03]} Rxe5 {[%emt 0:00:12]} 13. c4 {[%emt 0:00:07]} Re8 {[%emt 0:03:21]} 14. cxd5 {[%emt 0:02:53]} Nxd5 {[%emt 0:00:10]} 15. Nc4 {[%emt 0:00:56]} Be6 {[%emt 0:03:03]} 16. Qe2 {[%emt 0:13:55]} Qe7 {[%emt 0:02:43]} 17. Rfd1 {[%emt 0:11:44]} Rad8 {[%emt 0:00:25]} 18. Rac1 {[%emt 0:00:15]} h6 {[%emt 0:05:27]} 19. a3 {[%emt 0:01:46]} c6 {[%emt 0:06:08]} 20. b4 {[%emt 0:01:44]} Nf6 {[%emt 0:04:01]} 21. Qc2 {[%emt 0:05:08]} Bg4 {[%emt 0:04:30]} 22. Rxd8 {[%emt 0:00:19]} Rxd8 {[%emt 0:00:09]} 23. Na5 {[%emt 0:04:39]} Rd7 {[%emt 0:02:13]} 24. Nb3 {[%emt 0:06:46]} Nd5 {[%emt 0:09:28]} 25. h3 {[%emt 0:04:11]} Bh5 {[%emt 0:06:14]} 26. Qc5 {[%emt 0:02:18]} Qxc5 {[%emt 0:15:01]} 27. Nxc5 {[%emt 0:00:04]} Re7 {[%emt 0:00:07]} 28. e4 {[%emt 0:03:47]} Nb6 {[%emt 0:02:53]} 29. g4 {[%emt 0:01:04]} Bg6 {[%emt 0:00:01]} 30. Rd1 {[%emt 0:00:42]} f6 {[%emt 0:04:19]} 31. Rd8+ {[%emt 0:00:19]} Kh7 {[%emt 0:00:19]} 32. Bf1 {[%emt 0:03:25]} Bf7 {[%emt 0:02:20]} 33. Rb8 {[%emt 0:01:55]} Bc4 {[%emt 0:00:14]} 34. Rxb7 {[%emt 0:00:58]} Rxb7 {[%emt 0:00:37]} 35. Nxb7 {[%emt 0:00:02]} Bxf1 {[%emt 0:00:10]} 36. Kxf1 {[%emt 0:00:01]} Nc4 {[%emt 0:00:07]} 37. Nd8 {[%emt 0:04:10]} c5 {[%emt 0:00:39]} 38. bxc5 {[%emt 0:03:42]} Nxa3 {[%emt 0:00:02]} 39. Ke2 {[%emt 0:05:17]} Nb5 {[%emt 0:05:37]} 40. Kd3 {[%emt 0:00:23]} Kg8 {[%emt 0:00:53]} 41. Kc4 {[%emt 0:00:40]} Nc7 {[%emt 0:00:14]} 42. Nc6 {[%emt 0:00:59]} a6 {[%emt 0:00:14]} 43. Ne7+ {[%emt 0:01:48]} Kf7 {[%emt 0:01:29]} 44. Nd5 {[%emt 0:00:01]} Ne6 {[%emt 0:00:21]} 45. c6 {[%emt 0:00:41]} Ke8 {[%emt 0:00:11]} 46. Kb4 {[%emt 0:01:04]} Ng5 {[%emt 0:01:44]} 47. Ka5 {[%emt 0:00:46]} Nxe4 {[%emt 0:00:19]} 48. Kxa6 {[%emt 0:00:23]} 1-0

[Event "III Menorca Open-A 2024"]
[Site "Ciutadella Menorca"]
[Date "2024.04.03"]
[Round "3.20"]
[White "Ha, Yihan"]
[Black "Erigaisi Arjun"]
[Result "0-1"]
[ECO "A50"]
[WhiteElo "1865"]
[BlackElo "2748"]
[Annotator "TA"]
[PlyCount "96"]
[EventDate "2024.04.02"]
[EventType "swiss"]
[EventCountry "ESP"]
[SourceTitle "playchess.com"]
[Source "ChessBase"]
[SourceQuality "1"]
[TimeControl "5400+30"]

{[%evp 9,96,34,30,-10,0,0,-19,-20,-22,-6,0,-14,0,-4,0,-5,0,0,63,48,56,0,0,0,0,0,16,0,0,0,0,-84,-32,-22,-18,-11,-17,-14,-27,-30,-31,-32,-44,-27,-14,-10,-10,-9,-8,-10,-14,-7,-14,0,0,-18,-16,-77,-69,-67,-66,-48,-63,-61,-57,-86,-83,-97,-97,-107,-100,-152,-165,-151,-151,-151,-160,-229,-228,-217,-228,-203,-224,-222,-216,-201,-202,-205,-189]} 1. d4 {[%emt 0:00:04][%cal Bd2d4,Bd4d5][%mdl 32]} Nf6 {[%emt 0:03:33]} 2. c4 {[%emt 0:00:06]} b6 {[%emt 0:00:05]} 3. Nc3 {[%emt 0:01:32]} Bb7 {[%emt 0:00:07]} 4. Qc2 {[%emt 0:06:12]} Nc6 {[%emt 0:00:38]} 5. d5 {[%emt 0:13:18]} Nb4 {[%emt 0:01:18]} 6. Qb3 {[%emt 0:00:44]} e6 {[%emt 0:00:33][%cal Re6d5]} 7. a3 {[%emt 0:03:59]} Na6 {[%emt 0:00:06]} 8. e4 {[%emt 0:04:04] The position is equal.} exd5 {[%emt 0:02:39]} 9. exd5 {[%emt 0:02:07]} Bd6 {[%emt 0:00:33]} 10. Be2 {[%emt 0:06:38]} O-O {[%emt 0:01:21]} 11. Nf3 {[%emt 0:03:30]} c6 {[%emt 0:01:22]} 12. dxc6 {[%emt 0:03:57]} Bxc6 {[%emt 0:00:46]} 13. O-O {[%emt 0:01:22]} Ng4 {[%emt 0:11:16]} ({Black should play} 13... Nc5 $11 14. Qd1 Nce4) 14. h3 {[%emt 0:07:31]} Ne5 {[%emt 0:00:47]} 15. Nxe5 {[%emt 0:02:55]} (15. Nd4 $14) 15... Bxe5 $11 {[%emt 0:00:07]} 16. Be3 {[%emt 0:00:57]} Re8 {[%emt 0:01:42]} 17. Rad1 {[%emt 0:01:53]} Rc8 {[%emt 0:02:03]} 18. Nb5 {[%emt 0:07:20]} Nc5 {[%emt 0:02:16]} 19. Qc2 {[%emt 0:03:56]} Qf6 {[%emt 0:08:01]} 20. Nd4 {[%emt 0:11:12] [#]} (20. b4 $11 {keeps the balance.} Bxb5 21. bxc5 (21. cxb5 Ne4 $11)) 20... Be4 {[%emt 0:03:18]} ({Black should try} 20... Ba4 $1 $17 {[%cal Ra4c2]} 21. b3 Bxd4 22. Bxd4 Bxb3) 21. Qd2 $15 {[%emt 0:01:41]} Bxd4 {[%emt 0:04:23]} 22. Bxd4 {[%emt 0:02:40]} Qg6 {[%emt 0:00:06][%csl Ge4][%cal Rg6g2]} 23. f3 {[%emt 0:00:45]} Bc2 {[%emt 0:02:54]} 24. Rde1 {[%emt 0:00:31]} Nb3 {[%emt 0:06:41]} 25. Qc3 {[%emt 0:01:19]} d5 {[%emt 0:01:13]} 26. Bxg7 {[%emt 0:05:09]} Qxg7 {[%emt 0:00:48]} (26... Nc1 {with more complications.} 27. Rf2 Na2 28. Qd2 Kxg7 29. cxd5 Bb3) 27. Qxc2 {[%emt 0:00:07]} Qd4+ {[%emt 0:00:06]} 28. Kh1 {[%emt 0:00:42]} Nd2 {[%emt 0:00:06]} 29. Rg1 {[%emt 0:00:28]} dxc4 {[%emt 0:00:17]} 30. Bd1 {[%emt 0:06:24]} Rxe1 {[%emt 0:00:40]} 31. Rxe1 {[%emt 0:00:05]} Rc5 {[%emt 0:00:07]} 32. Re2 {[%emt 0:01:36]} Rd5 {[%emt 0:03:51]} 33. Re8+ {[%emt 0:00:43]} (33. Qc1 $1 $11) 33... Kg7 {[%emt 0:00:05]} 34. Be2 {[%emt 0:01:05]} b5 {[%emt 0:00:33]} 35. Qc1 {[%emt 0:00:54]} a5 {[%emt 0:01:21]} 36. Qe1 {[%emt 0:00:24]} Qf4 {[%emt 0:13:47] Wards off Qg3+} (36... Qxb2 37. Qg3+ Kh6 38. Qf4+ Kg7 39. Qg4+ Kh6 40. Rg8 $18) 37. Bd1 {[%emt 0:00:21]} b4 {[%emt 0:00:05]} 38. axb4 {[%emt 0:00:37]} axb4 $40 {[%emt 0:00:03][%mdl 128] White is in trouble.} 39. Qe7 {[%emt 0:00:30] Strongly threatening Qf8+.} Qd6 {[%emt 0:01:11] Active counter play!} 40. Qxd6 {[%emt 0:00:24]} (40. Qh4 $142) 40... Rxd6 $17 {[%emt 0:00:05][%mdl 4096] Endgame. KRB-KRN. Black is clearly better.} 41. Kg1 {[%emt 0:00:44]} b3 {[%emt 0:02:34]} 42. Rc8 {[%emt 0:00:27]} Nb1 {[%emt 0:02:14]} 43. Be2 {[%emt 0:00:06] [#]} (43. Bxb3 $17 {might work better.} cxb3 44. Rc1) 43... c3 $1 $19 {[%emt 0:00:04][%mdl 512]} 44. bxc3 {[%emt 0:00:41]} b2 {[%emt 0:00:51][%cal Ob1c3] And now ...Nxc3! would win.} 45. Rb8 {[%emt 0:00:32]} Rd2 {[%emt 0:00:05]} (45... Nxc3 46. Rxb2 Kf8 47. Bc4 $16) 46. Bd3 {[%emt 0:00:45]} Rxd3 {[%emt 0:01:10]} 47. Rxb2 {[%emt 0:00:08]} Nxc3 {[%emt 0:00:04]} 48. Rb7 {[%emt 0:00:09]} Rd2 {[%emt 0:00:08] Weighted Error Value: White=0.14 (very precise) /Black=0.06 (flawless) .  Mistake:       	White=5     	Black=2      Inaccurate:     	White=1     	---        OK:         	White=19    	Black=25     Best:        	White=6     	Black=2      Brilliant:      	---       	Black=1} 0-1

[Event "III Menorca Open-A 2024"]
[Site "Ciutadella Menorca"]
[Date "2024.04.03"]
[Round "3.21"]
[White "Prraneeth Vuppala"]
[Black "Oro, Faustino"]
[Result "1/2-1/2"]
[ECO "D31"]
[WhiteElo "2499"]
[BlackElo "2330"]
[Annotator "TA"]
[PlyCount "90"]
[EventDate "2024.04.02"]
[EventType "swiss"]
[EventCountry "ESP"]
[SourceTitle "playchess.com"]
[Source "ChessBase"]
[SourceQuality "1"]
[TimeControl "5400+30"]

{[%evp 16,90,15,10,5,2,2,20,25,0,0,0,0,0,0,-7,-5,-20,-3,-31,0,0,0,0,12,0,0,0,0,0,0,0,0,-74,-60,-57,-59,-91,-116,-108,-93,-100,-107,-95,-90,-94,-103,-177,-172,-187,-185,-183,31,25,27,28,28,0,14,8,27,8,8,0,0,0,0,0,0,0,0,0,0,0,0,0,0]} 1. d4 {[%emt 0:04:01]} d5 {[%emt 0:00:12]} 2. c4 {[%emt 0:00:37]} e6 {[%emt 0:00:07]} 3. Nf3 {[%emt 0:00:08]} a6 {[%emt 0:00:13]} 4. cxd5 {[%emt 0:03:26]} exd5 {[%emt 0:00:02]} 5. Nc3 {[%emt 0:00:07]} c6 {[%emt 0:00:26]} 6. Bg5 {[%emt 0:01:59] D31: Queen's Gambit Declined: Semi-Slav without ...Nf6 (+ Marshall Gambit and Noteboom) and Exchange Variation lines without ...Nf6.} Be7 {[%emt 0:00:51]} 7. Bf4 {[%emt 0:00:06]} Bd6 {[%emt 0:01:04]} 8. e3 {[%emt 0:00:21] Nowadays more popular than 8.Bxd6.} Ne7 {[%emt 0:04:04]} 9. Bd3 {[%emt 0:02:01]} Bxf4 {[%emt 0:06:20]} 10. exf4 {[%emt 0:00:04]} Bf5 {[%emt 0:00:15]} 11. O-O {[%emt 0:02:39]} O-O {[%emt 0:01:45]} 12. Re1 {[%emt 0:02:14]} Bxd3 {[%emt 0:03:25]} 13. Qxd3 {[%emt 0:00:02]} Nd7 {[%emt 0:00:29]} 14. Re2 {[%emt 0:10:59]} Nc8 {[%emt 0:08:19]} 15. Rae1 {[%emt 0:01:18]} Nd6 {[%emt 0:00:38]} 16. Ne5 {[%emt 0:01:14]} Re8 $146 {[%emt 0:06:23]} ({Predecessor:} 16... Nf6 17. f3 Rc8 18. g3 Rc7 19. Kg2 g6 20. Na4 Re8 21. Kf1 Rce7 22. Nc5 Nh5 23. Ng4 Rxe2 24. Rxe2 Rxe2 25. Qxe2 {1-0 Volkov,M (2263)-Mirzoev,A (2430) Titled Tuesday intern op 11th May blitz 2021 (3)}) 17. f5 {[%emt 0:12:32]} f6 {[%emt 0:09:59]} (17... Nf8 $5) 18. Ng4 {[%emt 0:08:02]} Rxe2 {[%emt 0:10:34]} 19. Rxe2 {[%emt 0:06:51]} Qf8 {[%emt 0:00:17]} 20. Re6 {[%emt 0:05:40]} Re8 {[%emt 0:03:50]} 21. h4 {[%emt 0:06:36]} Rxe6 {[%emt 0:10:04]} 22. fxe6 {[%emt 0:00:23]} Nb6 {[%emt 0:00:04]} 23. Qg3 $1 {[%emt 0:05:22]} Nbc8 {[%emt 0:03:51]} 24. Ne3 {[%emt 0:18:56]} (24. Nh6+ $11 {keeps the balance.} Kh8 25. Nf7+ (25. Ng4 Qe7 $17) 25... Kg8 (25... Nxf7 26. exf7 Nd6 27. Na4 $11) 26. Nh6+ Kh8 27. Nf7+ (27. Ng4 Qe8 $17) 27... Kg8 (27... Nxf7 28. exf7 Nd6 29. Na4 $11) 28. Na4) 24... Qe7 $17 {[%emt 0:02:56]} 25. Qg4 {[%emt 0:00:03]} g6 $1 {[%emt 0:04:01]} 26. Ncxd5 {[%emt 0:04:07]} cxd5 {[%emt 0:00:02]} 27. Nxd5 {[%emt 0:00:01]} Qg7 {[%emt 0:01:13]} 28. e7 {[%emt 0:03:29]} f5 $1 {[%emt 0:00:10]} 29. Qe2 {[%emt 0:00:43] [#]} Qf7 $1 {[%emt 0:01:08]} (29... Qxd4 $2 30. e8=Q+ (30. e8=B $2 Qxd5 31. Bd7 Kf8 $19) (30. e8=R+ Nxe8 31. Qxe8+ Kg7 $18) 30... Nxe8 31. Qxe8+ Kg7 32. Qd8 $18) (29... Kf7 $2 30. Nc7 Nxe7 31. Qe6+ Kf8 32. Qxd6 $18) 30. Qe5 {[%emt 0:00:18]} Ne8 {[%emt 0:00:08]} 31. h5 {[%emt 0:00:57]} (31. f3 $17) 31... gxh5 $19 {[%emt 0:06:24]} 32. Qg3+ {[%emt 0:00:40] [#]} Qg6 $1 {[%emt 0:04:27]} 33. Qb3 {[%emt 0:00:23]} b5 $2 {[%emt 0:05:51]} (33... Ncd6 $19 {Threatens to win with ...Qe6.} 34. Nc7+ Kg7 35. Ne6+ (35. Nxe8+ Nxe8 36. Qxb7 Qe6 $11) 35... Kh8 (35... Kf6 $2 36. Nd8 $19)) 34. Nb6+ $14 {[%emt 0:00:25]} Qf7 {[%emt 0:01:23]} 35. Qg3+ {[%emt 0:00:22]} (35. Nxc8 Qxb3 36. axb3 Kf7 $16) 35... Qg6 {[%emt 0:00:19]} 36. Qb3+ {[%emt 0:00:45]} (36. Qxg6+ hxg6 37. Nxc8 Kf7 $11) 36... Qf7 $1 {[%emt 0:00:04]} 37. Nxc8 {[%emt 0:00:27]} Qxb3 {[%emt 0:00:09]} 38. axb3 {[%emt 0:00:01]} Kf7 {[%emt 0:00:12]} 39. d5 {[%emt 0:00:29]} Nf6 {[%emt 0:00:16]} 40. Nd6+ {[%emt 0:00:53]} (40. d6 Ke6 41. Kf1 Kd7) 40... Kxe7 {[%emt 0:00:05]} 41. Nxf5+ {[%emt 0:00:04]} Kd7 {[%emt 0:00:30]} 42. Ne3 {[%emt 0:00:07]} a5 {[%emt 0:01:22]} (42... Kd6 43. Kh2) 43. f3 {[%emt 0:01:18]} Kd6 {[%emt 0:00:42]} 44. Kf2 {[%emt 0:00:05]} Kc5 {[%emt 0:01:40]} 45. d6 {[%emt 0:01:10]} Kxd6 {[%emt 0:00:07]} 1/2-1/2